[Event "Titled Tuesday Blitz June 13 Early 2023"]
[White "Xie, Bryan"]
[Black "Necula, Iulian"]
[WhiteFideId "30941296"]
[BlackFideId "1232380"]
[WhiteElo "2033"]
[BlackElo "1790"]
[Result "1-0"]
[Round "3"]
[TimeControl "180+2"]
[Date "2023.06.13"]
[WhiteClock "0:00:22"]
[BlackClock "0:01:22"]
[Board "230"]

1. e4 {[%clk 0:02:57]}  d6 {[%clk 0:03:00]} 2. d4 {[%clk 0:02:57]}  Nf6 {[%clk 0:03:00]} 3. Nc3 {[%clk 0:02:58]}  Nbd7 {[%clk 0:03:00]} 4. Nf3 {[%clk 0:02:58]}  e5 {[%clk 0:03:00]} 5. Bc4 {[%clk 0:02:57]}  Be7 {[%clk 0:03:00]} 6. O-O {[%clk 0:02:57]}  c6 {[%clk 0:02:59]} 7. a4 {[%clk 0:02:56]}  a5 {[%clk 0:02:58]} 8. Re1 {[%clk 0:02:56]}  h6 {[%clk 0:02:58]} 9. h3 {[%clk 0:02:57]}  Nf8 {[%clk 0:02:54]} 10. Be3 {[%clk 0:02:57]}  g5 {[%clk 0:02:54]} 11. dxe5 {[%clk 0:02:57]}  dxe5 {[%clk 0:02:53]} 12. Nxe5 {[%clk 0:02:58]}  Be6 {[%clk 0:02:46]} 13. Bxe6 {[%clk 0:02:47]}  Nxe6 {[%clk 0:02:46]} 14. Qxd8+ {[%clk 0:02:47]}  Rxd8 {[%clk 0:02:45]} 15. Bb6 {[%clk 0:02:47]}  Rd2 {[%clk 0:02:44]} 16. Re2 {[%clk 0:02:46]}  Rxe2 {[%clk 0:02:41]} 17. Nxe2 {[%clk 0:02:46]}  Nxe4 {[%clk 0:02:41]} 18. Bxa5 {[%clk 0:02:43]}  O-O {[%clk 0:02:30]} 19. Rd1 {[%clk 0:02:42]}  Bd6 {[%clk 0:02:24]} 20. Nd7 {[%clk 0:02:31]}  Ra8 {[%clk 0:02:19]} 21. b4 {[%clk 0:02:19]}  Be7 {[%clk 0:02:13]} 22. f3 {[%clk 0:02:13]}  Nf6 {[%clk 0:02:02]} 23. Ng3 {[%clk 0:01:45]}  Nd5 {[%clk 0:01:47]} 24. Nf5 {[%clk 0:01:27]}  Bxb4 {[%clk 0:01:38]} 25. Bxb4 {[%clk 0:01:18]}  Nxb4 {[%clk 0:01:36]} 26. Nxh6+ {[%clk 0:01:19]}  Kh7 {[%clk 0:01:35]} 27. Nxf7 {[%clk 0:01:19]}  Rxa4 {[%clk 0:01:34]} 28. Rd6 {[%clk 0:00:47]}  Kg7 {[%clk 0:01:33]} 29. Nfe5 {[%clk 0:00:36]}  Nf4 {[%clk 0:01:32]} 30. g3 {[%clk 0:00:23]}  Nxh3+ {[%clk 0:01:31]} 31. Kg2 {[%clk 0:00:21]}  Nxc2 {[%clk 0:01:27]} 32. Rg6+ {[%clk 0:00:20]}  Kh7 {[%clk 0:01:25]} 33. Nf6+ {[%clk 0:00:21]}  Kh8 {[%clk 0:01:22]} 34. Rg8# {[%clk 0:00:22]} 1-0


[Site "https://www.chess.com"]

[Event "Titled Tuesday Blitz June 13 Early 2023"]
[White "Torres Dominguez, David"]
[Black "Skiadopoulos, Nikolaos"]
[WhiteFideId "2220857"]
[BlackFideId "4200772"]
[WhiteElo "1999"]
[BlackElo "2022"]
[Result "0-1"]
[Round "3"]
[TimeControl "180+2"]
[Date "2023.06.13"]
[WhiteClock "0:00:00"]
[BlackClock "0:01:36"]
[Board "233"]

1. e4 {[%clk 0:03:00]}  c5 {[%clk 0:02:59]} 2. Nc3 {[%clk 0:03:00]}  Nc6 {[%clk 0:02:59]} 3. Bb5 {[%clk 0:03:00]}  Na5 {[%clk 0:02:58]} 4. Nf3 {[%clk 0:02:57]}  a6 {[%clk 0:02:57]} 5. Be2 {[%clk 0:02:56]}  b5 {[%clk 0:02:57]} 6. O-O {[%clk 0:02:54]}  Nc6 {[%clk 0:02:56]} 7. d3 {[%clk 0:02:54]}  g6 {[%clk 0:02:55]} 8. Re1 {[%clk 0:02:54]}  Bg7 {[%clk 0:02:54]} 9. Bg5 {[%clk 0:02:55]}  h6 {[%clk 0:02:53]} 10. Qc1 {[%clk 0:02:55]}  hxg5 {[%clk 0:02:53]} 11. Nxg5 {[%clk 0:02:56]}  Qc7 {[%clk 0:02:49]} 12. h3 {[%clk 0:02:53]}  Nd4 {[%clk 0:02:45]} 13. f4 {[%clk 0:02:52]}  Nxe2+ {[%clk 0:02:43]} 14. Nxe2 {[%clk 0:02:53]}  Bb7 {[%clk 0:02:38]} 15. Ng3 {[%clk 0:02:51]}  Nf6 {[%clk 0:02:32]} 16. c3 {[%clk 0:02:50]}  Nh5 {[%clk 0:02:27]} 17. Nf1 {[%clk 0:02:49]}  Nxf4 {[%clk 0:02:25]} 18. Qd2 {[%clk 0:02:42]}  Bh6 {[%clk 0:02:23]} 19. h4 {[%clk 0:02:24]}  Bxg5 {[%clk 0:02:22]} 20. hxg5 {[%clk 0:02:25]}  Rh5 {[%clk 0:02:21]} 21. e5 {[%clk 0:02:21]}  Nxg2 {[%clk 0:02:17]} 22. Ng3 {[%clk 0:02:16]}  Rh3 {[%clk 0:02:07]} 23. Ne4 {[%clk 0:02:12]}  Nh4 {[%clk 0:02:06]} 24. Qf2 {[%clk 0:02:07]}  Nf3+ {[%clk 0:02:04]} 25. Kg2 {[%clk 0:02:05]}  Nxe1+ {[%clk 0:02:03]} 26. Rxe1 {[%clk 0:02:04]}  Rxd3 {[%clk 0:02:01]} 27. Kg1 {[%clk 0:01:54]}  Bxe4 {[%clk 0:02:00]} 28. Rxe4 {[%clk 0:01:53]}  O-O-O {[%clk 0:02:00]} 29. a4 {[%clk 0:01:50]}  Rd1+ {[%clk 0:01:54]} 30. Kg2 {[%clk 0:01:45]}  Qc6 {[%clk 0:01:54]} 31. Qe2 {[%clk 0:01:45]}  Rd5 {[%clk 0:01:50]} 32. Kg3 {[%clk 0:01:44]}  Rh8 {[%clk 0:01:48]} 33. axb5 {[%clk 0:01:43]}  axb5 {[%clk 0:01:47]} 34. c4 {[%clk 0:01:42]}  bxc4 {[%clk 0:01:46]} 35. Rxc4 {[%clk 0:01:41]}  Qe6 {[%clk 0:01:41]} 36. Rg4 {[%clk 0:01:31]}  Rxe5 {[%clk 0:01:38]} 37. Qa6+ {[%clk 0:00:00]}  Qxa6 {[%clk 0:01:36]} 0-1


[Site "https://www.chess.com"]

[Event "Titled Tuesday Blitz June 13 Early 2023"]
[White "Terry, Renato"]
[Black "Nihal Sarin"]
[WhiteFideId "3803457"]
[BlackFideId "25092340"]
[WhiteElo "2575"]
[BlackElo "2689"]
[Result "1/2-1/2"]
[Round "4"]
[TimeControl "180+2"]
[Date "2023.06.13"]
[WhiteClock "0:00:14"]
[BlackClock "0:00:09"]
[Board "1"]

1. d4 {[%clk 0:02:55]}  Nc6 {[%clk 0:03:00]} 2. Nf3 {[%clk 0:02:56]}  d6 {[%clk 0:02:58]} 3. e4 {[%clk 0:02:56]}  Nf6 {[%clk 0:02:59]} 4. Nc3 {[%clk 0:02:55]}  g6 {[%clk 0:02:59]} 5. Be2 {[%clk 0:02:51]}  Bg7 {[%clk 0:02:59]} 6. h3 {[%clk 0:02:43]}  O-O {[%clk 0:02:56]} 7. Be3 {[%clk 0:02:44]}  a6 {[%clk 0:02:55]} 8. a4 {[%clk 0:02:43]}  b6 {[%clk 0:02:52]} 9. Qd2 {[%clk 0:02:40]}  Bb7 {[%clk 0:02:52]} 10. O-O {[%clk 0:02:34]}  Nb4 {[%clk 0:02:50]} 11. e5 {[%clk 0:02:26]}  dxe5 {[%clk 0:02:48]} 12. Nxe5 {[%clk 0:02:26]}  e6 {[%clk 0:02:40]} 13. Rfd1 {[%clk 0:02:15]}  a5 {[%clk 0:02:40]} 14. Rac1 {[%clk 0:02:14]}  Qe7 {[%clk 0:02:27]} 15. Bg5 {[%clk 0:02:10]}  Rfd8 {[%clk 0:02:27]} 16. Qf4 {[%clk 0:02:09]}  Nfd5 {[%clk 0:02:07]} 17. Bxe7 {[%clk 0:01:59]}  Nxf4 {[%clk 0:02:07]} 18. Bxd8 {[%clk 0:01:59]}  Rxd8 {[%clk 0:02:07]} 19. Bf1 {[%clk 0:01:48]}  c5 {[%clk 0:01:48]} 20. g3 {[%clk 0:01:48]}  Nh5 {[%clk 0:01:48]} 21. Nb5 {[%clk 0:00:55]}  cxd4 {[%clk 0:01:41]} 22. Nc4 {[%clk 0:00:55]}  Bf3 {[%clk 0:01:29]} 23. Rd2 {[%clk 0:00:55]}  Bh6 {[%clk 0:01:26]} 24. Rxd4 {[%clk 0:00:55]}  Rxd4 {[%clk 0:01:21]} 25. Nxd4 {[%clk 0:00:56]}  Bxc1 {[%clk 0:01:22]} 26. Nxf3 {[%clk 0:00:56]}  Nxc2 {[%clk 0:01:23]} 27. Nfe5 {[%clk 0:00:40]}  Nb4 {[%clk 0:00:56]} 28. b3 {[%clk 0:00:40]}  Nd5 {[%clk 0:00:52]} 29. Nd7 {[%clk 0:00:37]}  Ba3 {[%clk 0:00:37]} 30. Kg2 {[%clk 0:00:31]}  Bb4 {[%clk 0:00:31]} 31. Ndxb6 {[%clk 0:00:29]}  Nxb6 {[%clk 0:00:31]} 32. Nxb6 {[%clk 0:00:30]}  Nf6 {[%clk 0:00:32]} 33. Be2 {[%clk 0:00:27]}  Ne4 {[%clk 0:00:32]} 34. Bd3 {[%clk 0:00:25]}  Nxf2 {[%clk 0:00:30]} 35. Bc2 {[%clk 0:00:22]}  f5 {[%clk 0:00:24]} 36. Nd7 {[%clk 0:00:19]}  Ne4 {[%clk 0:00:08]} 37. Bxe4 {[%clk 0:00:19]}  fxe4 {[%clk 0:00:09]} 38. Nf6+ {[%clk 0:00:20]}  Kf7 {[%clk 0:00:10]} 39. Nxe4 {[%clk 0:00:20]}  e5 {[%clk 0:00:11]} 40. Kf3 {[%clk 0:00:16]}  h5 {[%clk 0:00:10]} 41. Ke3 {[%clk 0:00:12]}  Ke6 {[%clk 0:00:09]} 42. g4 {[%clk 0:00:12]}  hxg4 {[%clk 0:00:06]} 43. hxg4 {[%clk 0:00:13]}  Kd5 {[%clk 0:00:07]} 44. Nf6+ {[%clk 0:00:13]}  Ke6 {[%clk 0:00:07]} 45. Ne4 {[%clk 0:00:13]}  Kd5 {[%clk 0:00:08]} 46. Nf6+ {[%clk 0:00:13]}  Ke6 {[%clk 0:00:09]} 47. Ne4 {[%clk 0:00:14]} 1/2-1/2


[Site "https://www.chess.com"]

[Event "Titled Tuesday Blitz June 13 Early 2023"]
[White "Nakamura, Hikaru"]
[Black "Ahmadzada, Ahmad"]
[WhiteFideId "2016192"]
[BlackFideId "13413007"]
[WhiteElo "2874"]
[BlackElo "2388"]
[Result "1-0"]
[Round "4"]
[TimeControl "180+2"]
[Date "2023.06.13"]
[WhiteClock "0:01:52"]
[BlackClock "0:00:03"]
[Board "2"]

1. Nf3 {[%clk 0:03:00]}  c5 {[%clk 0:02:57]} 2. e3 {[%clk 0:02:56]}  g6 {[%clk 0:02:56]} 3. d4 {[%clk 0:02:51]}  Bg7 {[%clk 0:02:54]} 4. c4 {[%clk 0:02:48]}  Nf6 {[%clk 0:02:53]} 5. Nc3 {[%clk 0:02:48]}  O-O {[%clk 0:02:49]} 6. dxc5 {[%clk 0:02:48]}  Qa5 {[%clk 0:02:48]} 7. Bd2 {[%clk 0:02:45]}  Qxc5 {[%clk 0:02:47]} 8. Be2 {[%clk 0:02:45]}  b6 {[%clk 0:02:44]} 9. O-O {[%clk 0:02:42]}  Bb7 {[%clk 0:02:43]} 10. Rc1 {[%clk 0:02:42]}  d6 {[%clk 0:02:35]} 11. Nd4 {[%clk 0:02:40]}  Ne4 {[%clk 0:02:26]} 12. Nd5 {[%clk 0:02:30]}  Nxd2 {[%clk 0:01:56]} 13. Nxe7+ {[%clk 0:02:19]}  Kh8 {[%clk 0:01:55]} 14. Qxd2 {[%clk 0:02:20]}  Qg5 {[%clk 0:01:07]} 15. Nd5 {[%clk 0:02:20]}  Nd7 {[%clk 0:01:02]} 16. Nb5 {[%clk 0:02:18]}  Qe5 {[%clk 0:00:48]} 17. b3 {[%clk 0:02:18]}  Nc5 {[%clk 0:00:43]} 18. f4 {[%clk 0:01:59]}  Qb2 {[%clk 0:00:21]} 19. Qxb2 {[%clk 0:01:57]}  Bxb2 {[%clk 0:00:22]} 20. Rc2 {[%clk 0:01:57]}  Bg7 {[%clk 0:00:22]} 21. Bf3 {[%clk 0:01:57]}  Rad8 {[%clk 0:00:20]} 22. Nxa7 {[%clk 0:01:55]}  Rfe8 {[%clk 0:00:19]} 23. Re2 {[%clk 0:01:52]}  Bxd5 {[%clk 0:00:16]} 24. Bxd5 {[%clk 0:01:52]}  Rxe3 {[%clk 0:00:12]} 25. Rxe3 {[%clk 0:01:52]}  Bd4 {[%clk 0:00:12]} 26. Rf3 {[%clk 0:01:51]}  Re8 {[%clk 0:00:11]} 27. Kf2 {[%clk 0:01:51]}  Nd3+ {[%clk 0:00:03]} 28. Ke2 {[%clk 0:01:52]} 1-0


[Site "https://www.chess.com"]

[Event "Titled Tuesday Blitz June 13 Early 2023"]
[White "Caruana, Fabiano"]
[Black "Galchenko, Matvey"]
[WhiteFideId "2020009"]
[BlackFideId "24175480"]
[WhiteElo "2832"]
[BlackElo "2423"]
[Result "1-0"]
[Round "4"]
[TimeControl "180+2"]
[Date "2023.06.13"]
[WhiteClock "0:01:09"]
[BlackClock "0:00:03"]
[Board "3"]

1. e4 {[%clk 0:03:00]}  e6 {[%clk 0:02:59]} 2. d4 {[%clk 0:03:00]}  d5 {[%clk 0:02:59]} 3. Nd2 {[%clk 0:02:59]}  a6 {[%clk 0:02:59]} 4. Ngf3 {[%clk 0:02:59]}  Nf6 {[%clk 0:03:00]} 5. e5 {[%clk 0:02:59]}  Nfd7 {[%clk 0:03:00]} 6. Bd3 {[%clk 0:02:59]}  c5 {[%clk 0:03:01]} 7. c3 {[%clk 0:02:59]}  Nc6 {[%clk 0:03:02]} 8. O-O {[%clk 0:03:00]}  g5 {[%clk 0:03:02]} 9. a3 {[%clk 0:02:39]}  g4 {[%clk 0:02:55]} 10. Ne1 {[%clk 0:02:39]}  cxd4 {[%clk 0:02:56]} 11. cxd4 {[%clk 0:02:40]}  Nxd4 {[%clk 0:02:56]} 12. Qxg4 {[%clk 0:02:38]}  Nc6 {[%clk 0:02:55]} 13. f4 {[%clk 0:02:37]}  h5 {[%clk 0:02:46]} 14. Qd1 {[%clk 0:02:30]}  Nc5 {[%clk 0:02:41]} 15. Bb1 {[%clk 0:02:27]}  Qb6 {[%clk 0:02:23]} 16. Kh1 {[%clk 0:02:26]}  a5 {[%clk 0:02:24]} 17. Nef3 {[%clk 0:02:20]}  Bd7 {[%clk 0:02:23]} 18. b3 {[%clk 0:02:16]}  Bh6 {[%clk 0:02:03]} 19. Ng5 {[%clk 0:01:56]}  Nxe5 {[%clk 0:01:09]} 20. fxe5 {[%clk 0:01:48]}  Bxg5 {[%clk 0:01:07]} 21. Nc4 {[%clk 0:01:49]}  dxc4 {[%clk 0:01:01]} 22. Bxg5 {[%clk 0:01:48]}  Rg8 {[%clk 0:00:36]} 23. Qxh5 {[%clk 0:01:40]}  Rxg5 {[%clk 0:00:20]} 24. Qxg5 {[%clk 0:01:41]}  Bb5 {[%clk 0:00:06]} 25. Qg8+ {[%clk 0:01:36]}  Kd7 {[%clk 0:00:07]} 26. Rxf7+ {[%clk 0:01:35]}  Kc6 {[%clk 0:00:07]} 27. Qxa8 {[%clk 0:01:35]}  Nxb3 {[%clk 0:00:05]} 28. Be4+ {[%clk 0:01:26]}  Kc5 {[%clk 0:00:05]} 29. Rd1 {[%clk 0:01:21]}  Bc6 {[%clk 0:00:04]} 30. Bxc6 {[%clk 0:01:18]}  Qxc6 {[%clk 0:00:04]} 31. Rxb7 {[%clk 0:01:13]}  c3 {[%clk 0:00:03]} 32. Qa7+ {[%clk 0:01:09]}  Kc4 {[%clk 0:00:03]} 33. Rc7 {[%clk 0:01:09]} 1-0


[Site "https://www.chess.com"]

[Event "Titled Tuesday Blitz June 13 Early 2023"]
[White "Lintchevski, Daniil"]
[Black "Sarana, Alexey"]
[WhiteFideId "4171055"]
[BlackFideId "24133795"]
[WhiteElo "2559"]
[BlackElo "2714"]
[Result "1-0"]
[Round "4"]
[TimeControl "180+2"]
[Date "2023.06.13"]
[WhiteClock "0:00:32"]
[BlackClock "0:00:00"]
[Board "7"]

1. Nf3 {[%clk 0:03:00]}  d5 {[%clk 0:02:57]} 2. d4 {[%clk 0:03:00]}  Nf6 {[%clk 0:02:57]} 3. c4 {[%clk 0:03:01]}  e6 {[%clk 0:02:57]} 4. Nc3 {[%clk 0:02:59]}  Nbd7 {[%clk 0:02:55]} 5. Bg5 {[%clk 0:02:44]}  h6 {[%clk 0:02:55]} 6. Bxf6 {[%clk 0:02:32]}  Nxf6 {[%clk 0:02:55]} 7. e3 {[%clk 0:02:32]}  a6 {[%clk 0:02:45]} 8. Rc1 {[%clk 0:02:27]}  dxc4 {[%clk 0:02:42]} 9. Bxc4 {[%clk 0:02:28]}  b5 {[%clk 0:02:42]} 10. Bd3 {[%clk 0:02:26]}  Bb7 {[%clk 0:02:43]} 11. Qc2 {[%clk 0:02:23]}  Rc8 {[%clk 0:02:15]} 12. Ne4 {[%clk 0:02:20]}  Bb4+ {[%clk 0:02:15]} 13. Ke2 {[%clk 0:02:17]}  O-O {[%clk 0:02:12]} 14. Rhd1 {[%clk 0:02:14]}  Nd7 {[%clk 0:02:01]} 15. a3 {[%clk 0:02:11]}  Be7 {[%clk 0:02:02]} 16. b4 {[%clk 0:02:11]}  Bd6 {[%clk 0:01:48]} 17. Nc5 {[%clk 0:02:07]}  Bxc5 {[%clk 0:01:42]} 18. dxc5 {[%clk 0:02:04]}  Bxf3+ {[%clk 0:01:37]} 19. gxf3 {[%clk 0:02:05]}  Qe7 {[%clk 0:01:36]} 20. Be4 {[%clk 0:01:55]}  f5 {[%clk 0:01:18]} 21. Bb7 {[%clk 0:01:45]}  Rb8 {[%clk 0:01:18]} 22. c6 {[%clk 0:01:45]}  Ne5 {[%clk 0:01:17]} 23. Qc5 {[%clk 0:01:39]}  Qf6 {[%clk 0:01:09]} 24. f4 {[%clk 0:01:27]}  Nc4 {[%clk 0:01:06]} 25. Rxc4 {[%clk 0:01:21]}  bxc4 {[%clk 0:01:06]} 26. Qxc4 {[%clk 0:01:22]}  Kh8 {[%clk 0:00:55]} 27. Rd7 {[%clk 0:01:17]}  Rbd8 {[%clk 0:00:33]} 28. Qd4 {[%clk 0:01:06]}  Rxd7 {[%clk 0:00:08]} 29. Qxf6 {[%clk 0:01:02]}  gxf6 {[%clk 0:00:08]} 30. cxd7 {[%clk 0:01:03]}  Rd8 {[%clk 0:00:08]} 31. Bc6 {[%clk 0:01:03]}  Kg8 {[%clk 0:00:08]} 32. a4 {[%clk 0:01:04]}  Kf8 {[%clk 0:00:09]} 33. a5 {[%clk 0:01:04]}  Ke7 {[%clk 0:00:08]} 34. b5 {[%clk 0:00:54]}  Kd6 {[%clk 0:00:09]} 35. Bb7 {[%clk 0:00:54]}  axb5 {[%clk 0:00:05]} 36. a6 {[%clk 0:00:54]}  b4 {[%clk 0:00:03]} 37. a7 {[%clk 0:00:53]}  Kxd7 {[%clk 0:00:02]} 38. Kd3 {[%clk 0:00:43]}  c6 {[%clk 0:00:02]} 39. Kc4 {[%clk 0:00:38]}  Kc7 {[%clk 0:00:02]} 40. a8=Q {[%clk 0:00:39]}  Rxa8 {[%clk 0:00:02]} 41. Bxa8 {[%clk 0:00:40]}  c5 {[%clk 0:00:00]} 42. Bf3 {[%clk 0:00:32]} 1-0


[Site "https://www.chess.com"]

[Event "Titled Tuesday Blitz June 13 Early 2023"]
[White "Deac, Bogdan-Daniel"]
[Black "Harutjunyan, Gevorg"]
[WhiteFideId "1226380"]
[BlackFideId "13300873"]
[WhiteElo "2644"]
[BlackElo "2474"]
[Result "1-0"]
[Round "4"]
[TimeControl "180+2"]
[Date "2023.06.13"]
[WhiteClock "0:00:05"]
[BlackClock "0:00:00"]
[Board "10"]

1. b3 {[%clk 0:03:00]}  e5 {[%clk 0:02:59]} 2. Bb2 {[%clk 0:02:57]}  Nc6 {[%clk 0:03:00]} 3. Nf3 {[%clk 0:02:57]}  e4 {[%clk 0:03:00]} 4. Nd4 {[%clk 0:02:57]}  Nf6 {[%clk 0:03:00]} 5. e3 {[%clk 0:02:57]}  d5 {[%clk 0:02:47]} 6. c4 {[%clk 0:02:18]}  Nxd4 {[%clk 0:02:14]} 7. Bxd4 {[%clk 0:02:17]}  Be7 {[%clk 0:02:14]} 8. Nc3 {[%clk 0:02:03]}  dxc4 {[%clk 0:01:57]} 9. Bxc4 {[%clk 0:02:00]}  O-O {[%clk 0:01:57]} 10. O-O {[%clk 0:01:59]}  c5 {[%clk 0:01:49]} 11. Be5 {[%clk 0:01:59]}  Bf5 {[%clk 0:01:41]} 12. f3 {[%clk 0:01:52]}  Bg6 {[%clk 0:01:29]} 13. f4 {[%clk 0:01:26]}  Qd7 {[%clk 0:01:29]} 14. Bb5 {[%clk 0:00:38]}  Qe6 {[%clk 0:01:14]} 15. Bc4 {[%clk 0:00:34]}  Qd7 {[%clk 0:01:14]} 16. a4 {[%clk 0:00:34]}  Rad8 {[%clk 0:01:12]} 17. Qe1 {[%clk 0:00:33]}  a6 {[%clk 0:00:35]} 18. h3 {[%clk 0:00:28]}  Qxd2 {[%clk 0:00:34]} 19. Qxd2 {[%clk 0:00:24]}  Rxd2 {[%clk 0:00:35]} 20. f5 {[%clk 0:00:23]}  Bh5 {[%clk 0:00:35]} 21. Bxf6 {[%clk 0:00:20]}  Bxf6 {[%clk 0:00:34]} 22. Nxe4 {[%clk 0:00:21]}  Bxa1 {[%clk 0:00:23]} 23. Nxd2 {[%clk 0:00:21]}  Bf6 {[%clk 0:00:12]} 24. g4 {[%clk 0:00:20]}  Bg5 {[%clk 0:00:12]} 25. Ne4 {[%clk 0:00:09]}  Bxe3+ {[%clk 0:00:12]} 26. Kg2 {[%clk 0:00:10]}  Re8 {[%clk 0:00:11]} 27. Kf3 {[%clk 0:00:08]}  Bxg4+ {[%clk 0:00:10]} 28. hxg4 {[%clk 0:00:08]}  Bd4 {[%clk 0:00:10]} 29. Bxf7+ {[%clk 0:00:05]}  Kxf7 {[%clk 0:00:11]} 30. Nd6+ {[%clk 0:00:05]}  Ke7 {[%clk 0:00:11]} 31. Nxe8 {[%clk 0:00:06]}  Kxe8 {[%clk 0:00:12]} 32. Ke4 {[%clk 0:00:06]}  Ke7 {[%clk 0:00:09]} 33. g5 {[%clk 0:00:07]}  b5 {[%clk 0:00:06]} 34. axb5 {[%clk 0:00:06]}  axb5 {[%clk 0:00:07]} 35. b4 {[%clk 0:00:06]}  Kf7 {[%clk 0:00:06]} 36. Kd5 {[%clk 0:00:06]}  Be3 {[%clk 0:00:05]} 37. bxc5 {[%clk 0:00:06]}  Bxg5 {[%clk 0:00:06]} 38. c6 {[%clk 0:00:05]}  Bd8 {[%clk 0:00:06]} 39. Rb1 {[%clk 0:00:05]}  Kf6 {[%clk 0:00:06]} 40. Rxb5 {[%clk 0:00:05]}  h5 {[%clk 0:00:06]} 41. Kd6 {[%clk 0:00:04]}  h4 {[%clk 0:00:00]} 42. Kd7 {[%clk 0:00:05]} 1-0


[Site "https://www.chess.com"]

[Event "Titled Tuesday Blitz June 13 Early 2023"]
[White "Ivanchuk, Vasyl"]
[Black "Gharibyan, Mamikon"]
[WhiteFideId "14100010"]
[BlackFideId "13308300"]
[WhiteElo "2710"]
[BlackElo "2445"]
[Result "0-1"]
[Round "4"]
[TimeControl "180+2"]
[Date "2023.06.13"]
[WhiteClock "0:00:05"]
[BlackClock "0:00:15"]
[Board "12"]

1. e4 {[%clk 0:02:59]}  e5 {[%clk 0:02:57]} 2. Nf3 {[%clk 0:02:58]}  Nc6 {[%clk 0:02:56]} 3. d4 {[%clk 0:02:58]}  exd4 {[%clk 0:02:56]} 4. c3 {[%clk 0:02:59]}  d5 {[%clk 0:02:54]} 5. exd5 {[%clk 0:02:58]}  Qxd5 {[%clk 0:02:54]} 6. cxd4 {[%clk 0:02:59]}  Bb4+ {[%clk 0:02:53]} 7. Nc3 {[%clk 0:02:59]}  Nf6 {[%clk 0:02:53]} 8. Bd3 {[%clk 0:02:56]}  O-O {[%clk 0:02:49]} 9. O-O {[%clk 0:02:56]}  Bxc3 {[%clk 0:02:49]} 10. bxc3 {[%clk 0:02:56]}  Bg4 {[%clk 0:02:49]} 11. Bf4 {[%clk 0:02:46]}  Rfe8 {[%clk 0:02:45]} 12. Bxc7 {[%clk 0:02:33]}  Rac8 {[%clk 0:02:30]} 13. Bg3 {[%clk 0:02:32]}  Ne4 {[%clk 0:02:27]} 14. c4 {[%clk 0:02:26]}  Qh5 {[%clk 0:02:18]} 15. d5 {[%clk 0:01:33]}  Nd4 {[%clk 0:02:14]} 16. Nxd4 {[%clk 0:01:33]}  Bxd1 {[%clk 0:02:13]} 17. Rfxd1 {[%clk 0:01:32]}  Nc3 {[%clk 0:01:49]} 18. Rdc1 {[%clk 0:01:28]}  Nxd5 {[%clk 0:00:56]} 19. Bf5 {[%clk 0:00:51]}  Nf6 {[%clk 0:00:36]} 20. Bxc8 {[%clk 0:00:50]}  Rxc8 {[%clk 0:00:37]} 21. f3 {[%clk 0:00:41]}  Qg6 {[%clk 0:00:29]} 22. Bf2 {[%clk 0:00:36]}  Nh5 {[%clk 0:00:28]} 23. Ne2 {[%clk 0:00:19]}  Qd3 {[%clk 0:00:22]} 24. Re1 {[%clk 0:00:19]}  h6 {[%clk 0:00:19]} 25. c5 {[%clk 0:00:16]}  Re8 {[%clk 0:00:17]} 26. Ng3 {[%clk 0:00:16]}  Rxe1+ {[%clk 0:00:17]} 27. Rxe1 {[%clk 0:00:16]}  Nf4 {[%clk 0:00:18]} 28. Ne4 {[%clk 0:00:13]}  Qc2 {[%clk 0:00:18]} 29. a3 {[%clk 0:00:11]}  Nd3 {[%clk 0:00:18]} 30. Rf1 {[%clk 0:00:12]}  Nxf2 {[%clk 0:00:18]} 31. Nxf2 {[%clk 0:00:10]}  Qxc5 {[%clk 0:00:17]} 32. h3 {[%clk 0:00:10]}  Qxa3 {[%clk 0:00:17]} 33. Rd1 {[%clk 0:00:09]}  b5 {[%clk 0:00:17]} 34. Rd7 {[%clk 0:00:09]}  b4 {[%clk 0:00:15]} 35. Rb7 {[%clk 0:00:08]}  b3 {[%clk 0:00:15]} 36. Nd3 {[%clk 0:00:09]}  a5 {[%clk 0:00:15]} 37. Rb5 {[%clk 0:00:07]}  a4 {[%clk 0:00:15]} 38. Kh2 {[%clk 0:00:05]}  Qd6+ {[%clk 0:00:15]} 0-1


[Site "https://www.chess.com"]

[Event "Titled Tuesday Blitz June 13 Early 2023"]
[White "Henriquez Villagra, Cristobal"]
[Black "Priasmoro, Novendra"]
[WhiteFideId "3409350"]
[BlackFideId "7105029"]
[WhiteElo "2542"]
[BlackElo "2412"]
[Result "1-0"]
[Round "4"]
[TimeControl "180+2"]
[Date "2023.06.13"]
[WhiteClock "0:00:28"]
[BlackClock "0:00:07"]
[Board "14"]

1. e4 {[%clk 0:02:56]}  c5 {[%clk 0:02:57]} 2. Nf3 {[%clk 0:02:55]}  Nc6 {[%clk 0:02:57]} 3. Nc3 {[%clk 0:02:54]}  g6 {[%clk 0:02:57]} 4. Bc4 {[%clk 0:02:33]}  Bg7 {[%clk 0:02:54]} 5. O-O {[%clk 0:02:33]}  d6 {[%clk 0:02:47]} 6. a3 {[%clk 0:02:32]}  Nf6 {[%clk 0:02:47]} 7. d3 {[%clk 0:02:29]}  O-O {[%clk 0:02:47]} 8. Ba2 {[%clk 0:02:27]}  Rb8 {[%clk 0:02:44]} 9. Re1 {[%clk 0:02:25]}  b5 {[%clk 0:02:39]} 10. Nd5 {[%clk 0:02:16]}  e6 {[%clk 0:02:26]} 11. Nxf6+ {[%clk 0:02:12]}  Bxf6 {[%clk 0:02:27]} 12. c3 {[%clk 0:02:12]}  a5 {[%clk 0:02:27]} 13. Bh6 {[%clk 0:02:11]}  Re8 {[%clk 0:02:26]} 14. Qd2 {[%clk 0:02:11]}  b4 {[%clk 0:02:26]} 15. axb4 {[%clk 0:02:11]}  axb4 {[%clk 0:02:27]} 16. d4 {[%clk 0:02:08]}  bxc3 {[%clk 0:02:25]} 17. bxc3 {[%clk 0:02:09]}  cxd4 {[%clk 0:02:19]} 18. cxd4 {[%clk 0:02:09]}  e5 {[%clk 0:02:16]} 19. Ng5 {[%clk 0:01:49]}  Be6 {[%clk 0:01:26]} 20. d5 {[%clk 0:01:40]}  Nd4 {[%clk 0:00:57]} 21. dxe6 {[%clk 0:01:35]}  fxe6 {[%clk 0:00:58]} 22. h4 {[%clk 0:01:30]}  Qe7 {[%clk 0:00:46]} 23. Rec1 {[%clk 0:01:13]}  Rb7 {[%clk 0:00:40]} 24. Rab1 {[%clk 0:01:01]}  Ra7 {[%clk 0:00:38]} 25. Bc4 {[%clk 0:00:59]}  Kh8 {[%clk 0:00:33]} 26. Rb2 {[%clk 0:00:55]}  Rc7 {[%clk 0:00:27]} 27. Bf1 {[%clk 0:00:54]}  Rxc1 {[%clk 0:00:22]} 28. Qxc1 {[%clk 0:00:55]}  d5 {[%clk 0:00:23]} 29. Rb6 {[%clk 0:00:46]}  dxe4 {[%clk 0:00:18]} 30. Nxe4 {[%clk 0:00:39]}  Bxh4 {[%clk 0:00:18]} 31. Qb1 {[%clk 0:00:39]}  Nf5 {[%clk 0:00:17]} 32. Rb7 {[%clk 0:00:38]}  Qd8 {[%clk 0:00:15]} 33. Qb5 {[%clk 0:00:30]}  Nxh6 {[%clk 0:00:13]} 34. Qxe5+ {[%clk 0:00:29]}  Bf6 {[%clk 0:00:07]} 35. Nxf6 {[%clk 0:00:28]} 1-0


[Site "https://www.chess.com"]